bitfinex/quotes_BTCUSD_20220105
["timestamp","ask_amount","ask_price","bid_price","bid_amount"]
[1641359546488,0.69607265,46338.0,46337.0,0.24911]
[1641359547735,0.68107265,46338.0,46337.0,0.22011]
[1641359548536,0.69107265,46338.0,46337.0,0.24811]
[1641359549736,0.68107265,46338.0,46337.0,0.22011]
[1641359550593,0.69107265,46338.0,46337.0,0.24911]
[1641359550794,0.69590293,46338.0,46337.0,0.24911]
[1641359551795,0.68590293,46338.0,46337.0,0.22011]
[1641359552399,0.69490293,46338.0,46337.0,0.24611]
[1641359552599,0.47171298,46338.0,46337.0,0.24611]
[1641359553803,0.46271298,46338.0,46337.0,0.22011]
[1641359554437,0.47271298,46338.0,46337.0,0.24711]
[1641359555736,0.46271298,46338.0,46337.0,0.22011]
[1641359556343,0.68636457,46338.0,46337.0,0.22011]
[1641359556538,0.69636457,46338.0,46337.0,0.24811]
[1641359557641,0.68636457,46338.0,46337.0,0.22011]
[1641359558492,0.69636457,46338.0,46337.0,0.24811]
[1641359558893,0.80431257,46338.0,46337.0,0.24811]
[1641359559090,0.58066098,46338.0,46337.0,0.24811]
[1641359559690,0.57066098,46338.0,46337.0,0.22011]
[1641359560090,0.79433779,46338.0,46337.0,0.22011]
[1641359560289,0.57066098,46338.0,46337.0,0.22011]
[1641359560491,0.58066098,46338.0,46337.0,0.24811]
[1641359561840,0.57066098,46338.0,46337.0,0.22011]
[1641359562441,0.58066098,46338.0,46337.0,0.24811]
[1641359562841,0.80859528,46338.0,46337.0,0.24811]
[1641359563042,0.58066098,46338.0,46337.0,0.24811]
[1641359563840,0.57066098,46338.0,46337.0,0.22011]
[1641359564443,0.58066098,46338.0,46337.0,0.24811]
[1641359565692,0.57066098,46338.0,46337.0,0.22011]
[1641359566492,0.58066098,46338.0,46337.0,0.24811]
[1641359568095,0.57066098,46338.0,46337.0,0.22011]
[1641359568595,0.57966098,46338.0,46337.0,0.24911]
[1641359569838,0.57066098,46338.0,46337.0,0.22011]
[1641359570441,0.57966098,46338.0,46337.0,0.22011]
[1641359570639,0.57966098,46338.0,46337.0,0.24911]
[1641359571241,0.57966098,46338.0,46337.0,0.17411]
[1641359571844,0.57066098,46338.0,46337.0,0.14511]
[1641359572443,0.01142498,46338.0,46337.0,0.49411]
[1641359574392,0.01142498,46338.0,46337.0,0.47511]
[1641359574587,0.00742498,46338.0,46337.0,0.49411]
[1641359575590,0.00742498,46338.0,46337.0,0.16411]
[1641359575790,0.00742498,46338.0,46337.0,0.14511]
[1641359576593,0.00742498,46338.0,46337.0,0.16511]
[1641359577836,0.00742498,46338.0,46337.0,0.14511]
[1641359578638,0.00742498,46338.0,46337.0,0.16611]
[1641359579839,0.00742498,46338.0,46337.0,0.14511]
[1641359580240,0.36271298,46338.0,46337.0,0.14511]
[1641359580493,0.59184936,46338.0,46337.0,0.18511]
[1641359580692,0.7010736,46338.0,46337.0,0.18511]
[1641359582196,0.7550426,46338.0,46337.0,0.18511]
[1641359582395,0.7470426,46338.0,46337.0,0.14511]
[1641359582692,0.7560426,46338.0,46337.0,0.17511]
[1641359582897,0.57524024,46338.0,46337.0,0.17511]
[1641359584237,0.56624024,46338.0,46337.0,0.14511]
[1641359584634,0.57524024,46338.0,46337.0,0.16411]
[1641359585035,0.83114644,46338.0,46337.0,0.16411]
[1641359585838,0.82214644,46338.0,46337.0,0.14511]
[1641359586036,0.82214644,46338.0,46337.0,0.13511]
[1641359586736,0.83214644,46338.0,46337.0,0.15411]
[1641359587990,0.82214644,46338.0,46337.0,0.13511]
[1641359588491,0.83214644,46338.0,46337.0,0.14711]
[1641359588893,0.83214644,46338.0,46337.0,0.14689]
[1641359588894,1.82632158,46338.0,46337.0,0.14689]
[1641359589090,1.23632158,46338.0,46337.0,0.14689]
[1641359589289,1.78632158,46338.0,46337.0,0.14634]
[1641359589491,1.78632158,46338.0,46334.0,0.00011]
[1641359589492,0.41057484,46336.0,46334.0,0.00011]
[1641359589695,1.06917911,46335.0,46334.0,0.00011]
[1641359589890,1.06917911,46335.0,46334.0,0.00305505]
[1641359589891,0.74917911,46335.0,46334.0,0.00305505]
[1641359590095,0.84917911,46335.0,46333.0,0.00044]
[1641359590293,0.35653343,46334.0,46333.0,0.00022]
[1641359590493,0.36841165,46332.0,46331.0,0.004]
[1641359590692,0.23671165,46332.0,46331.0,0.004]
[1641359590890,0.93422165,46332.0,46331.0,0.004]
[1641359591294,0.98821565,46332.0,46331.0,0.004]
[1641359591496,1.28827859,46332.0,46331.0,0.004]
[1641359591742,2.11113271,46332.0,46331.0,0.004]
[1641359592644,2.12813271,46332.0,46331.0,0.004]
[1641359593842,2.11113271,46332.0,46331.0,0.004]
[1641359594644,2.12813271,46332.0,46331.0,0.004]
[1641359595490,0.355288,46329.0,46326.0,0.003068]
[1641359595690,0.05520366,46327.0,46326.0,0.003068]
[1641359595890,0.6807209,46327.0,46326.0,0.003068]
[1641359596089,0.7807209,46327.0,46326.0,0.003068]
[1641359596693,1.10088985,46327.0,46326.0,0.003068]
[1641359596890,1.10416481,46327.0,46326.0,0.003068]
[1641359597896,1.08716481,46327.0,46326.0,0.003068]
[1641359598794,1.10516481,46327.0,46326.0,0.003068]
[1641359598993,1.10516481,46327.0,46326.0,0.223068]
[1641359599440,1.73065638,46327.0,46326.0,0.223068]
[1641359599840,1.71265638,46327.0,46326.0,0.223068]
[1641359600641,1.72765638,46327.0,46326.0,0.223068]
[1641359601342,1.67935638,46327.0,46326.0,0.223068]
[1641359601741,1.66435638,46327.0,46326.0,0.223068]
[1641359602543,1.67535638,46327.0,46326.0,0.223068]
[1641359603990,1.66435638,46327.0,46326.0,0.223068]
[1641359604591,1.67535638,46327.0,46326.0,0.223068]
[1641359604792,1.57414572,46327.0,46326.0,0.223068]
[1641359604995,0.31744391,46327.0,46326.0,0.223068]
[1641359605192,1.0404866,46327.0,46326.0,0.223068]
[1641359605992,1.0294866,46327.0,46326.0,0.223068]
[1641359606193,0.30644391,46327.0,46326.0,0.223068]
[1641359606596,0.71571191,46327.0,46326.0,0.223068]
[1641359608443,0.72054336,46327.0,46326.0,0.223068]
[1641359609144,0.82054336,46327.0,46326.0,0.223068]
[1641359609343,0.72054336,46327.0,46326.0,0.223068]
[1641359609543,0.82054336,46327.0,46326.0,0.223068]
[1641359610487,0.46525536,46327.0,46326.0,0.223068]
[1641359610688,0.47525536,46327.0,46326.0,0.223068]
[1641359611288,0.83054336,46327.0,46326.0,0.223068]
[1641359611789,0.82054336,46327.0,46326.0,0.223068]
[1641359612588,0.82954336,46327.0,46326.0,0.223068]
[1641359613088,1.05211834,46327.0,46326.0,0.223068]
[1641359613891,1.04311834,46327.0,46326.0,0.223068]
[1641359614842,1.05011834,46327.0,46326.0,0.223068]
[1641359615643,0.82754336,46327.0,46326.0,0.223068]
[1641359615842,0.82054336,46327.0,46326.0,0.223068]
[1641359616744,0.83154336,46327.0,46326.0,0.223068]
[1641359617345,1.05467087,46327.0,46326.0,0.223068]
[1641359617992,0.82054336,46327.0,46326.0,0.223068]
[1641359618789,0.83154336,46327.0,46326.0,0.223068]
[1641359619992,0.82054336,46327.0,46326.0,0.223068]
[1641359620693,0.83154336,46327.0,46326.0,0.223068]
[1641359621751,1.05924676,46327.0,46326.0,0.223068]
[1641359621953,1.04824676,46327.0,46326.0,0.223068]
[1641359622553,1.96136737,46327.0,46326.0,0.223068]
[1641359622753,1.97236737,46327.0,46326.0,0.223068]
[1641359623352,1.74466397,46327.0,46326.0,0.223068]
[1641359623954,1.73366397,46327.0,46326.0,0.223068]
[1641359624755,1.74666397,46327.0,46326.0,0.223068]
[1641359625357,1.79666397,46327.0,46326.0,0.223068]
[1641359625996,1.78366397,46327.0,46326.0,0.223068]
[1641359626696,1.79666397,46327.0,46326.0,0.223068]
[1641359628097,1.78366397,46327.0,46326.0,0.223068]
[1641359628698,1.79566397,46327.0,46326.0,0.223068]
[1641359629949,1.83196397,46327.0,46326.0,0.223068]
[1641359630750,1.84396397,46327.0,46326.0,0.223068]
[1641359630950,0.93084336,46327.0,46326.0,0.223068]
[1641359631951,0.91884336,46327.0,46326.0,0.223068]
[1641359632151,0.87054336,46327.0,46326.0,0.223068]
[1641359632351,0.82054336,46327.0,46326.0,0.223068]
[1641359632751,0.83554336,46327.0,46326.0,0.223068]
[1641359632994,0.83554336,46327.0,46326.0,0.218068]
[1641359633293,1.55609301,46327.0,46326.0,0.218068]
[1641359633494,1.97609301,46327.0,46326.0,0.218068]
[1641359633896,1.24054336,46327.0,46326.0,0.218068]
[1641359634696,1.30554336,46327.0,46326.0,0.218068]
[1641359635898,1.20554336,46327.0,46326.0,0.218068]
[1641359636097,1.14054336,46327.0,46326.0,0.218068]
[1641359636755,1.17054336,46327.0,46326.0,0.221068]
[1641359637144,1.27054336,46327.0,46326.0,0.221068]
[1641359637948,1.24054336,46327.0,46326.0,0.218068]
[1641359638749,1.25154336,46327.0,46326.0,0.223068]
[1641359639148,1.97209301,46327.0,46326.0,0.223068]
[1641359639549,1.25154336,46327.0,46326.0,0.223068]
[1641359639949,1.24054336,46327.0,46326.0,0.218068]
[1641359640794,1.24954336,46327.0,46326.0,0.224068]
[1641359641396,1.89705336,46327.0,46326.0,0.224068]
[1641359641599,1.94535336,46327.0,46326.0,0.224068]
[1641359642099,1.93635336,46327.0,46326.0,0.218068]
[1641359642697,1.94935336,46327.0,46326.0,0.218068]
[1641359643302,1.59788441,46327.0,46326.0,0.218068]
[1641359643698,2.31808198,46327.0,46326.0,0.218068]
[1641359643898,2.21808198,46327.0,46326.0,0.218068]
[1641359644343,2.51892757,46327.0,46326.0,0.218068]
[1641359644544,1.79873,46327.0,46326.0,0.218068]
[1641359644748,1.80273,46327.0,46326.0,0.218068]
[1641359644944,1.80273,46327.0,46326.0,0.193068]
[1641359645144,1.90273,46327.0,46326.0,0.193068]
[1641359646146,1.88573,46327.0,46326.0,0.193068]
[1641359646748,1.90473,46327.0,46326.0,0.193068]
[1641359648095,1.88573,46327.0,46326.0,0.193068]
[1641359648696,1.89973,46327.0,46326.0,0.193068]
[1641359650096,1.88573,46327.0,46326.0,0.193068]
[1641359650898,1.90073,46327.0,46326.0,0.193068]
[1641359651945,2.69812738,46327.0,46326.0,0.193068]
[1641359652145,2.68312738,46327.0,46326.0,0.193068]
[1641359652745,2.69712738,46327.0,46326.0,0.193068]
[1641359654046,2.68312738,46327.0,46326.0,0.193068]
[1641359654246,2.68312738,46327.0,46326.0,0.1915796]
[1641359654847,2.69712738,46327.0,46326.0,0.1915796]
[1641359656102,2.68312738,46327.0,46326.0,0.1915796]
[1641359656903,2.69912738,46327.0,46326.0,0.1915796]
[1641359658506,2.68312738,46327.0,46326.0,0.1915796]
[1641359658906,2.69612738,46327.0,46326.0,0.1915796]
[1641359660047,2.68312738,46327.0,46326.0,0.1915796]
[1641359660848,2.73412738,46327.0,46326.0,0.1915796]
[1641359661449,2.77620929,46327.0,46326.0,0.1915796]
[1641359662048,2.72520929,46327.0,46326.0,0.1915796]
[1641359662250,2.68266127,46327.0,46326.0,0.1915796]
[1641359662853,2.73366127,46327.0,46326.0,0.1915796]
[1641359663893,2.77470524,46327.0,46326.0,0.1915796]
[1641359664092,2.72370524,46327.0,46326.0,0.1915796]
[1641359664292,1.88573,46327.0,46326.0,0.1915796]
[1641359664494,2.57090337,46327.0,46326.0,0.1915796]
[1641359664895,2.58690337,46327.0,46326.0,0.1915796]
[1641359665999,2.57090337,46327.0,46326.0,0.1915796]
[1641359666942,2.58690337,46327.0,46326.0,0.1915796]
[1641359668146,2.57090337,46327.0,46326.0,0.1915796]
[1641359668544,2.27005778,46327.0,46326.0,0.1915796]
[1641359668947,2.18505778,46327.0,46326.0,0.1915796]
[1641359669346,1.82976978,46327.0,46326.0,0.1915796]
[1641359669546,1.14459641,46327.0,46326.0,0.1915796]
[1641359670045,1.9677227,46327.0,46326.0,0.1915796]
[1641359670498,2.0677227,46327.0,46326.0,0.1915796]
[1641359670899,2.1097227,46327.0,46326.0,0.1915796]
[1641359671297,1.27159641,46327.0,46326.0,0.1915796]
[1641359672098,1.22959641,46327.0,46326.0,0.1915796]
[1641359672499,1.12959641,46327.0,46326.0,0.1915796]
[1641359672899,1.17859641,46327.0,46326.0,0.1915796]
[1641359674099,1.12959641,46327.0,46326.0,0.1915796]
[1641359674950,1.20059641,46327.0,46326.0,0.1915796]
[1641359675749,1.20059641,46327.0,46326.0,0.42853345]
[1641359675750,1.14661641,46327.0,46326.0,0.42853345]
[1641359676149,1.07561641,46327.0,46326.0,0.42853345]
[1641359676851,1.09161641,46327.0,46326.0,0.2015796]
[1641359678093,1.07561641,46327.0,46326.0,0.1915796]
[1641359678895,1.09361641,46327.0,46326.0,0.2015796]
[1641359680100,1.54890441,46327.0,46326.0,0.1915796]
[1641359680297,1.53090441,46327.0,46326.0,0.1915796]
[1641359680897,2.25130536,46327.0,46326.0,0.2075796]
[1641359682149,2.24930536,46327.0,46326.0,0.1815796]
[1641359682347,1.53090441,46327.0,46326.0,0.1815796]
[1641359682947,1.53490441,46327.0,46326.0,0.1955796]
[1641359683948,1.17961641,46327.0,46326.0,0.1955796]
[1641359684147,1.17561641,46327.0,46326.0,0.1815796]
[1641359684847,1.18261641,46327.0,46326.0,0.1985796]
[1641359685048,1.18261641,46327.0,46326.0,0.1935796]
[1641359686096,1.17561641,46327.0,46326.0,0.1765796]
[1641359686896,1.18261641,46327.0,46326.0,0.1935796]
[1641359688199,1.17561641,46327.0,46326.0,0.1765796]
[1641359688999,1.18261641,46327.0,46326.0,0.1935796]
[1641359690048,1.08261641,46327.0,46326.0,0.1935796]
[1641359690251,1.07561641,46327.0,46326.0,0.1765796]
[1641359690949,1.08161641,46327.0,46326.0,0.1905796]
[1641359692152,1.07561641,46327.0,46326.0,0.1765796]
[1641359693016,1.08161641,46327.0,46326.0,0.1905796]
[1641359693615,1.18161641,46327.0,46326.0,0.1905796]
[1641359694217,1.17561641,46327.0,46326.0,0.1765796]
[1641359694416,1.07561641,46327.0,46326.0,0.1765796]
[1641359694618,1.17561641,46327.0,46326.0,0.1765796]
[1641359695018,1.18161641,46327.0,46326.0,0.1935796]
[1641359695418,1.89955363,46327.0,46326.0,0.1935796]
[1641359696018,1.18161641,46327.0,46326.0,0.1935796]
[1641359696219,1.07561641,46327.0,46326.0,0.1765796]
[1641359697051,1.08161641,46327.0,46326.0,0.1905796]
[1641359697250,1.79771105,46327.0,46326.0,0.1905796]
[1641359698351,1.79171105,46327.0,46326.0,0.1765796]
[1641359698952,1.79971105,46327.0,46326.0,0.1905796]
[1641359699157,1.08361641,46327.0,46326.0,0.1905796]
[1641359699655,1.43890441,46327.0,46326.0,0.1905796]
[1641359700055,1.53890441,46327.0,46326.0,0.1905796]
[1641359700256,1.53090441,46327.0,46326.0,0.1765796]
[1641359700897,1.53890441,46327.0,46326.0,0.1955796]
[1641359702197,1.53090441,46327.0,46326.0,0.1765796]
[1641359702999,1.53890441,46327.0,46326.0,0.1955796]
[1641359703400,1.18361641,46327.0,46326.0,0.1955796]
[1641359703601,2.0217427,46327.0,46326.0,0.1955796]
[1641359703803,1.18361641,46327.0,46326.0,0.1955796]
[1641359704250,1.89154661,46327.0,46326.0,0.1765796]
[1641359704946,1.18361641,46327.0,46326.0,0.1965796]
[1641359706149,1.17561641,46327.0,46326.0,0.1765796]
[1641359706550,1.89173854,46327.0,46326.0,0.1765796]
[1641359706950,1.89973854,46327.0,46326.0,0.1965796]
[1641359708003,1.79973854,46327.0,46326.0,0.1965796]
[1641359708204,1.79173854,46327.0,46326.0,0.1765796]
[1641359708604,1.07561641,46327.0,46326.0,0.1765796]
[1641359709004,1.08361641,46327.0,46326.0,0.1995796]
[1641359709203,1.08480805,46327.0,46326.0,0.1995796]
[1641359709604,1.08707733,46327.0,46326.0,0.1995796]
[1641359710206,1.07907733,46327.0,46326.0,0.1765796]
[1641359710406,1.79519946,46327.0,46326.0,0.1765796]
[1641359711005,1.80019946,46327.0,46326.0,0.2005796]
[1641359712244,1.79519946,46327.0,46326.0,0.1765796]
[1641359713046,1.79719946,46327.0,46326.0,0.2075796]
[1641359714348,1.79519946,46327.0,46326.0,0.1765796]
[1641359714949,2.25348746,46327.0,46326.0,0.2055796]
[1641359715350,1.53736533,46327.0,46326.0,0.2055796]
[1641359715594,2.37549162,46327.0,46326.0,0.2055796]
[1641359716196,2.37249162,46327.0,46326.0,0.1765796]
[1641359716995,2.38049162,46327.0,46326.0,0.1765796]
[1641359717397,2.30070267,46327.0,46326.0,0.1765796]
[1641359718296,2.40067567,46327.0,46326.0,0.1765796]
[1641359718496,2.47892557,46327.0,46326.0,0.1765796]
[1641359719097,2.48692557,46327.0,46326.0,0.1765796]
[1641359719945,2.40749315,46327.0,46326.0,0.1765796]
[1641359721247,1.65033833,46327.0,46326.0,0.1765796]
[1641359722998,1.65233833,46327.0,46326.0,0.1765796]
[1641359724398,1.64233833,46327.0,46326.0,0.1765796]
[1641359725004,1.65233833,46327.0,46326.0,0.1763596]
[1641359725200,1.65233833,46327.0,46326.0,0.1749296]
[1641359725201,2.30576131,46327.0,46326.0,0.1749296]
[1641359725399,2.30576131,46327.0,46326.0,0.1739396]
[1641359725599,1.07,46324.0,46323.0,2.007e-05]
[1641359725802,0.75,46323.0,46322.0,0.00024007]
[1641359726000,2.64112242,46323.0,46307.0,0.00033]
[1641359726198,2.64112242,46323.0,46318.0,0.0002826]
[1641359726199,0.959188,46320.0,46318.0,0.0002826]
[1641359726402,0.92,46318.0,46317.0,0.01014754]
[1641359726761,0.92,46318.0,46305.0,0.00044]
[1641359726762,0.00455,46310.0,46305.0,0.00044]
[1641359726959,0.0012578,46307.0,46305.0,0.00044]
[1641359727160,0.0483,46306.0,46305.0,0.00044]
[1641359727365,0.78971242,46306.0,46304.0,0.00044]
[1641359727567,0.78971242,46306.0,46303.0,0.00022]
[1641359727568,0.99,46304.0,46303.0,0.00022]
[1641359727762,0.99,46304.0,46302.0,0.00044]
[1641359727763,1.37877428,46304.0,46301.0,0.0001]
[1641359727960,1.37877428,46304.0,46282.0,0.00033]
[1641359727961,0.6039,46302.0,46282.0,0.00033]
[1641359728161,0.2671012,46295.0,46282.0,0.00033]
[1641359728361,0.69581,46294.0,46285.0,0.05454472]
[1641359728565,1.151098,46294.0,46285.0,0.00051772]
[1641359729160,1.158098,46294.0,46285.0,0.00051772]
[1641359729361,1.148098,46294.0,46291.0,0.00021]
[1641359729860,0.4482877,46292.0,46291.0,0.00021]
[1641359730064,1.5993857,46292.0,46291.0,0.00021]
[1641359730261,1.57543782,46292.0,46291.0,0.00021]
[1641359730501,2.19197782,46292.0,46291.0,0.00021]
[1641359731100,2.20297782,46292.0,46291.0,0.00021]
[1641359731501,2.20297782,46292.0,46290.0,0.00619764]
[1641359731700,0.355288,46291.0,46290.0,0.00619764]
[1641359731902,1.051098,46291.0,46290.0,0.00619764]
[1641359732102,1.151098,46291.0,46290.0,0.00619764]
[1641359732501,1.051098,46291.0,46290.0,0.00619764]
[1641359732901,1.051098,46291.0,46290.0,0.00119764]
[1641359733100,1.154129,46291.0,46290.0,0.00119764]
[1641359733301,1.154129,46291.0,46290.0,0.22119764]
[1641359733701,1.48408351,46291.0,46290.0,0.22119764]
[1641359734100,1.58408351,46291.0,46290.0,0.22119764]
[1641359734350,1.205129,46291.0,46290.0,0.22119764]
[1641359734752,1.156829,46291.0,46290.0,0.22119764]
[1641359735051,1.183829,46291.0,46290.0,0.22119764]
[1641359736053,0.77451,46291.0,46290.0,0.22814537]
[1641359736253,0.74751,46291.0,46290.0,0.22814537]
[1641359736452,1.102798,46291.0,46290.0,0.22814537]
[1641359736652,1.102798,46291.0,46290.0,0.22314537]
[1641359737154,0.64977928,46291.0,46290.0,0.24114537]
[1641359738399,0.64977928,46291.0,46290.0,0.22314537]
[1641359738601,0.64977928,46291.0,46290.0,0.2232287]
[1641359738800,0.64977928,46291.0,46290.0,0.22331203]
[1641359739200,0.64977928,46291.0,46290.0,0.24031203]
[1641359740602,0.65424588,46291.0,46290.0,0.22331203]
[1641359741104,0.65424588,46291.0,46290.0,0.24031203]
[1641359742347,0.65424588,46291.0,46290.0,0.22331203]
[1641359743149,0.65424588,46291.0,46290.0,0.24031203]
[1641359743952,0.65424588,46291.0,46290.0,0.28861203]
[1641359744150,0.65424588,46291.0,46290.0,0.64390003]
[1641359744351,0.65424588,46291.0,46290.0,0.86073227]
[1641359744551,0.65424588,46291.0,46290.0,2.49073227]
[1641359744752,0.65424588,46291.0,46290.0,2.91073227]
[1641359744753,0.41451588,46291.0,46290.0,2.91073227]
[1641359744953,0.01242895,46296.0,46291.0,1.43]
[1641359745151,0.01242895,46296.0,46295.0,2.22034394]
[1641359745351,0.01242895,46296.0,46295.0,2.0518617]
[1641359745602,0.23886103,46314.0,46297.0,0.2]
[1641359745799,0.23886103,46314.0,46298.0,0.83742024]
[1641359746000,0.33321216,46306.0,46299.0,0.30230097]
[1641359746198,0.33321216,46306.0,46300.0,0.355288]
[1641359746398,0.33321216,46306.0,46301.0,2.80200335]
[1641359746598,0.33321216,46306.0,46302.0,0.355288]
[1641359746799,0.33321216,46306.0,46303.0,0.0483]
[1641359747000,0.33321216,46306.0,46304.0,0.58029931]
[1641359747199,0.33321216,46306.0,46305.0,0.27078002]
[1641359747398,0.33321216,46306.0,46305.0,0.62606802]
[1641359748399,0.33321216,46306.0,46305.0,0.63301575]
[1641359748602,0.33321216,46306.0,46305.0,0.58471575]
[1641359749250,0.33321216,46306.0,46305.0,0.60271575]
[1641359749449,0.33321216,46306.0,46305.0,0.59771575]
[1641359749853,0.33321216,46306.0,46305.0,0.59778636]
[1641359750152,0.33321216,46306.0,46305.0,0.59792758]
[1641359750347,0.33321216,46306.0,46305.0,0.57992758]
[1641359750552,0.33321216,46306.0,46305.0,0.57978636]
[1641359750752,0.33321216,46306.0,46305.0,0.36230634]
[1641359751149,0.33321216,46306.0,46305.0,0.38030634]
[1641359751348,0.33321216,46306.0,46305.0,0.59525576]
[1641359751552,0.33321216,46306.0,46305.0,0.38030634]
[1641359752448,0.33321216,46306.0,46305.0,0.36230634]
[1641359752649,0.33321216,46306.0,46305.0,0.57670858]
[1641359752997,0.33321216,46306.0,46305.0,0.36230634]
[1641359753299,0.33321216,46306.0,46305.0,0.38030634]
[1641359753695,0.33321216,46306.0,46305.0,0.60030634]
[1641359754297,0.43442396,46306.0,46305.0,0.22701834]
[1641359754498,1.02505948,46306.0,46305.0,0.22701834]
[1641359754695,0.78971196,46306.0,46305.0,0.22701834]
[1641359755097,0.79771196,46306.0,46305.0,0.25001834]
[1641359756496,1.03238085,46306.0,46305.0,0.22701834]
[1641359757151,1.04438085,46306.0,46305.0,0.22671834]
[1641359757553,0.80171196,46306.0,46305.0,0.22641834]
[1641359757752,0.44521216,46306.0,46305.0,0.22641834]
[1641359757955,0.44521216,46306.0,46305.0,0.22611834]
[1641359758151,0.44521216,46306.0,46305.0,0.22581834]
[1641359758352,0.43321216,46306.0,46305.0,0.22581834]
[1641359758656,0.43321216,46306.0,46305.0,0.22551834]
[1641359759252,0.49121216,46306.0,46305.0,0.22751834]
[1641359760253,0.058,46306.0,46305.0,0.79751834]
[1641359760503,0.00455,46310.0,46305.0,1.15080634]
[1641359760703,0.00455,46310.0,46306.0,0.355288]
[1641359760903,0.00455,46310.0,46305.0,0.22551834]
[1641359761103,0.00955,46310.0,46307.0,0.00604773]
[1641359761307,0.00955,46310.0,46308.0,0.355288]
[1641359761507,0.34727796,46309.0,46307.0,0.00604773]
[1641359762703,0.0022333,46308.0,46307.0,0.00604773]
[1641359763103,0.3575213,46308.0,46307.0,0.00604773]
[1641359763304,0.3575213,46308.0,46307.0,0.05804773]
[1641359763508,0.4575213,46308.0,46307.0,0.05804773]
[1641359763703,0.1022333,46308.0,46307.0,0.05804773]
[1641359764448,0.1022333,46308.0,46307.0,0.00604773]
[1641359764649,0.0022333,46308.0,46307.0,0.00604773]
[1641359764847,0.0022333,46308.0,46306.0,0.00604773]
[1641359765350,0.0092333,46308.0,46307.0,0.041]
[1641359766350,0.0092333,46308.0,46306.0,0.00604773]
[1641359766554,0.0022333,46308.0,46306.0,0.00604773]
[1641359767150,0.0072333,46308.0,46306.0,0.05604773]
[1641359768405,0.0022333,46308.0,46306.0,0.00604773]
[1641359769107,0.0022333,46308.0,46306.0,0.02704773]
[1641359770408,0.0022333,46308.0,46306.0,0.00604773]
[1641359771307,0.0022333,46308.0,46306.0,0.02704773]
[1641359771770,0.0022333,46308.0,46307.0,1.47]
[1641359772068,0.0022333,46308.0,46307.0,1.873588]
[1641359772263,0.0022333,46308.0,46307.0,1.87963573]
[1641359773263,0.0022333,46308.0,46307.0,1.90363573]
[1641359773463,0.0022333,46308.0,46307.0,1.90370422]
[1641359773864,0.00455,46310.0,46309.0,0.2]
[1641359774064,0.00455,46310.0,46309.0,0.91273336]
[1641359775163,0.00455,46310.0,46309.0,0.93573336]
[1641359775601,0.00455,46310.0,46309.0,0.94178109]
[1641359776603,0.00455,46310.0,46309.0,0.91878109]
[1641359777202,0.00455,46310.0,46309.0,0.93978109]
[1641359777706,0.00455,46310.0,46309.0,0.98978109]
[1641359778505,0.00455,46310.0,46309.0,0.96878109]
[1641359779352,0.00455,46310.0,46309.0,0.98978109]
[1641359779749,0.00455,46310.0,46309.0,0.93978109]
[1641359780453,0.00455,46310.0,46309.0,0.91878109]
[1641359781352,0.00455,46310.0,46309.0,0.89348109]
[1641359782553,0.00455,46310.0,46309.0,0.87048109]
[1641359783303,0.00455,46310.0,46309.0,0.90748109]
[1641359783602,0.00455,46310.0,46309.0,0.65232173]
[1641359784403,0.00455,46310.0,46309.0,0.61532173]
[1641359784607,0.00455,46310.0,46309.0,0.82680522]
[1641359785205,0.00455,46310.0,46309.0,0.92280522]
[1641359785405,0.00455,46310.0,46309.0,0.72287244]
[1641359785605,0.00455,46310.0,46309.0,0.72293966]
[1641359785805,0.00455,46310.0,46309.0,0.7230741]
[1641359786606,0.00455,46310.0,46309.0,0.6270741]
[1641359787274,0.00455,46310.0,46309.0,0.7160741]
[1641359788370,0.00574206,46310.0,46309.0,0.7160741]
[1641359788571,0.00574206,46310.0,46309.0,0.6270741]
[1641359789271,0.00574206,46310.0,46309.0,0.7160741]
[1641359790503,0.00574206,46310.0,46309.0,0.6270741]
[1641359790902,0.00574206,46310.0,46309.0,0.41559061]
[1641359791302,0.00574206,46310.0,46309.0,0.50459061]
[1641359791501,0.00574206,46310.0,46309.0,0.70995515]
[1641359792603,0.00574206,46310.0,46309.0,0.62095515]
[1641359793305,0.00574206,46310.0,46309.0,0.71195515]
[1641359793508,0.00574206,46310.0,46309.0,0.50659061]
[1641359793705,0.00574206,46310.0,46309.0,0.45260461]
[1641359793906,0.00574206,46310.0,46309.0,0.65785426]
[1641359794105,0.00574206,46310.0,46309.0,0.67197764]
[1641359794355,0.00574206,46310.0,46309.0,0.87197764]
[1641359794554,0.00074206,46310.0,46309.0,0.78097764]
[1641359794755,0.00074206,46310.0,46309.0,0.83097764]
[1641359795356,0.00074206,46310.0,46309.0,0.93297764]
[1641359796258,0.00074206,46310.0,46309.0,0.88297764]
[1641359796458,0.00074206,46310.0,46309.0,0.78097764]
[1641359797463,0.00074206,46310.0,46309.0,0.87897764]
[1641359797660,0.00074206,46310.0,46309.0,0.92897764]
[1641359798602,0.00074206,46310.0,46309.0,0.83097764]
[1641359799302,0.00074206,46310.0,46309.0,0.93297764]
[1641359800604,0.00074206,46310.0,46309.0,0.61160461]
[1641359800803,0.00074206,46310.0,46309.0,0.56160461]
[1641359801203,0.00074206,46310.0,46309.0,0.80925133]
[1641359802453,0.00074206,46310.0,46309.0,0.78325133]
[1641359803054,0.00074206,46310.0,46309.0,0.88325133]
[1641359803253,0.00074206,46310.0,46309.0,0.92525133]
[1641359804254,0.00074206,46310.0,46309.0,0.97355133]
[1641359804654,0.00074206,46310.0,46309.0,0.93155133]
[1641359804856,0.00074206,46310.0,46309.0,2.46155133]
[1641359805056,0.00074206,46310.0,46309.0,3.61784474]
[1641359805258,0.00074206,46310.0,46309.0,3.64584474]
[1641359807301,0.00074206,46310.0,46309.0,3.56384474]
[1641359807502,0.00074206,46310.0,46309.0,2.13384474]
[1641359807806,0.00074206,46310.0,46309.0,2.11884474]
[1641359808001,0.00074206,46310.0,46309.0,0.87884474]
[1641359808203,0.00074206,46310.0,46309.0,0.92884474]
[1641359808403,0.00074206,46310.0,46309.0,0.97755133]
[1641359808603,0.00074206,46310.0,46309.0,0.88155133]
[1641359808804,0.00074206,46310.0,46309.0,0.83155133]
[1641359809255,0.00074206,46310.0,46309.0,0.86355133]
[1641359810055,0.00074206,46310.0,46309.0,2.05355133]
[1641359810658,0.00074206,46310.0,46309.0,2.02155133]
[1641359811258,0.00074206,46310.0,46309.0,2.07155133]
[1641359811556,0.00074206,46310.0,46309.0,2.11255133]
[1641359812556,0.00074206,46310.0,46309.0,2.07155133]
[1641359813405,0.00074206,46310.0,46309.0,2.14455133]
[1641359814104,0.00074206,46310.0,46309.0,1.00455133]
[1641359814304,0.00119206,46310.0,46309.0,1.00455133]
[1641359815206,0.00119206,46310.0,46309.0,0.70990461]
[1641359815406,0.00119206,46310.0,46309.0,0.80090461]